bitfinex/quotes_ETHUSD_20250411
["timestamp","ask_amount","ask_price","bid_price","bid_amount"]
[1744378615239,6.37517,1568.6,1568.2,6.37636]
[1744378615406,0.7805,1568.9,1568.4,6.37563]
[1744378615611,6.37525,1568.6,1568.2,7.02053243]
[1744378615835,6.37476,1568.7,1568.3,6.43970475]
[1744378616025,0.7805,1568.9,1568.2,0.06375474]
[1744378616232,12.74973,1568.7,1568.3,12.75251]
[1744378616431,6.37472,1568.7,1568.3,12.75251]
[1744378616638,7.15451,1568.9,1568.4,0.06375566]
[1744378616826,6.37473,1568.7,1568.4,0.06375566]
[1744378617021,6.37464,1568.8,1568.2,6.37673]
[1744378617227,6.37315,1569.1,1568.6,6.3751]
[1744378617431,18.77929,1569.3,1568.5,6.37536]
[1744378617432,6.37395,1568.9,1568.5,6.37536]
[1744378617646,6.3739,1568.9,1568.5,6.37536]
[1744378617856,7.17171,1569.2,1568.3,0.70142007]
[1744378617857,7.17171,1569.2,1568.3,0.637673]
[1744378618035,6.37492,1568.7,1568.3,6.37627]
[1744378618234,6.37391,1568.9,1568.6,6.3749]
[1744378618473,6.37451,1568.8,1568.4,12.75155]
[1744378618678,6.375,1568.7,1568.3,6.37614]
[1744378618824,6.37508,1568.7,1568.3,6.37627]
[1744378619024,12.75,1568.7,1568.3,6.37627]
[1744378619351,6.37511,1568.6,1568.2,13.51699]
[1744378619515,6.37308,1569.1,1568.3,0.06375687]
[1744378619714,6.3742,1568.9,1568.5,6.37539]
[1744378619962,0.799,1569.2,1568.2,7.14049]
[1744378619963,0.799,1569.2,1568.6,6.43877353]
[1744378620124,6.37383,1569.0,1568.6,6.37496]
[1744378620323,0.799,1569.2,1568.5,6.37537]
[1744378620546,6.37418,1568.9,1568.5,13.388327]
[1744378620753,6.37432,1568.8,1568.5,13.388237]
[1744378620916,6.37357,1569.0,1568.6,6.3748]
[1744378621119,6.3723,1569.3,1568.6,6.3748]
[1744378621120,6.37235,1569.3,1568.9,6.37365]
[1744378621353,7.19276,1569.5,1568.8,0.06373056]
[1744378621354,6.37186,1569.4,1568.8,0.06373056]
[1744378621562,6.37579,1568.5,1568.1,7.13528]
[1744378621767,6.37647,1568.3,1568.1,0.7583]
[1744378621970,6.37429,1568.8,1567.5,7.13245]
[1744378621971,6.37795,1567.9,1567.5,7.13245]
[1744378622134,6.37999,1567.4,1567.3,0.638009]
[1744378622361,6.37944,1567.6,1567.2,6.38064]
[1744378622694,6.38072,1567.3,1567.1,0.05]
[1744378622894,6.3808,1567.2,1567.1,0.05]
[1744378623550,6.38343,1566.6,1566.3,8.11350876]
[1744378623893,6.38488,1566.2,1566.1,7.40050876]
[1744378624077,0.8115,1566.5,1566.1,7.40050876]
[1744378624280,7.1954,1566.5,1566.1,7.40050876]
[1744378624456,6.38291,1566.7,1566.2,6.38465]
[1744378624807,13.2212,1566.9,1566.5,6.3834]
[1744378624808,0.8182,1566.9,1566.5,6.3834]
[1744378625002,6.38316,1566.7,1566.2,7.18518]
[1744378625179,6.38179,1567.0,1566.2,0.86433803]
[1744378625500,6.38247,1566.8,1566.4,6.38403]
[1744378625700,0.788,1567.1,1566.2,0.8005]
[1744378625701,7.16923,1567.1,1566.2,7.18521]
[1744378625901,6.38408,1566.4,1566.1,7.40050876]
[1744378626071,6.38221,1566.9,1566.4,6.38371]
[1744378626625,0.788,1567.1,1566.8,6.38241]
[1744378626927,6.38203,1566.9,1566.5,6.38342]
[1744378627076,7.658397,1566.9,1566.4,6.38401]
[1744378627275,12.76435,1566.9,1566.4,6.3838]
[1744378627599,0.788,1567.1,1566.4,6.3838]
[1744378627600,0.788,1567.1,1566.4,0.06383247]
[1744378627782,0.788,1567.1,1566.7,6.38278]
[1744378627783,6.38121,1567.1,1566.7,6.38278]
[1744378627978,6.38089,1567.2,1566.4,6.38397]
[1744378628175,6.38089,1567.2,1566.6,6.383]
[1744378628176,7.019629,1567.1,1566.6,6.383]
[1744378628376,6.38045,1567.3,1566.4,9.38406]
[1744378628572,7.1566,1567.4,1566.8,6.38238]
[1744378628573,0.7766,1567.4,1566.8,6.38238]
[1744378628777,6.37895,1567.7,1567.3,6.38031]
[1744378628778,7.15945,1567.7,1567.3,6.38031]
[1744378628977,7.15945,1567.7,1567.3,6.38013]
[1744378628978,0.7805,1567.7,1567.3,6.38013]
[1744378629181,1.496391,1567.7,1566.9,6.38201]
[1744378629490,6.38041,1567.3,1566.8,6.38235]
[1744378629832,7.15944,1567.7,1567.2,6.38078]
[1744378630017,7.15928,1567.7,1567.3,6.38023]
[1744378630186,6.37821,1567.9,1567.4,6.3798]
[1744378630385,6.37821,1567.9,1567.4,6.37976]
[1744378630591,4.69825288,1568.1,1567.5,6.44337217]
[1744378630794,0.7768,1568.4,1567.9,6.37755]
[1744378631115,0.7768,1568.4,1568.0,6.37736]
[1744378631338,5.52255288,1568.7,1567.9,6.3778]
[1744378631635,5.52255288,1568.7,1567.7,0.06377601]
[1744378631946,5.52255288,1568.7,1567.7,6.37877]
[1744378631947,6.37551,1568.5,1567.7,6.37877]
[1744378632090,5.52255288,1568.7,1568.0,6.37719]
[1744378632301,6.3773,1568.1,1567.7,6.37874]
[1744378632502,6.37636,1568.3,1567.6,3.0]
[1744378632810,6.37665,1568.3,1567.8,6.37813]
[1744378633006,6.3778,1568.0,1567.5,6.37957]
[1744378633206,0.7775,1568.1,1567.1,6.38088]
[1744378633207,7.15465,1568.1,1567.1,6.38088]
[1744378633450,6.37811,1567.9,1567.4,6.37979]
[1744378633757,0.7775,1568.1,1567.3,6.38036]
[1744378633758,6.37855,1567.8,1567.3,6.38036]
[1744378633963,6.37768,1568.0,1567.5,6.37925]
[1744378634253,7.15467,1568.1,1567.6,6.37917]
[1744378634420,7.15467,1568.1,1567.5,6.37925]
[1744378634421,6.37789,1568.0,1567.5,6.37925]
[1744378634616,0.7775,1568.1,1566.9,0.8305]
[1744378634617,12.409,1567.9,1566.9,0.8305]
[1744378634818,6.37952,1567.6,1567.1,6.38118]
[1744378635022,6.37952,1567.6,1567.0,0.06380684]
[1744378635263,6.37952,1567.6,1566.7,6.38284]
[1744378635264,0.8241,1567.5,1566.7,6.38284]
[1744378635406,0.8241,1567.9,1567.4,6.37984]
[1744378635609,6.37864,1567.8,1567.1,0.84099042]
[1744378635823,6.37953,1567.6,1567.0,6.3816]
[1744378636063,6.37974,1567.5,1567.0,6.38142]
[1744378636239,0.637974,1567.5,1566.8,0.7772]
[1744378636422,6.37882,1567.7,1567.2,6.38063]
[1744378636607,7.20228,1567.9,1567.4,6.37966]
[1744378637011,7.20221,1567.9,1567.4,6.37978]
[1744378637384,6.37868,1567.8,1567.3,6.38011]
[1744378637778,0.8241,1567.9,1567.1,6.38121]
[1744378637978,0.7951,1568.3,1567.4,0.785]
[1744378638298,4.69825288,1568.4,1568.1,6.37682]
[1744378638590,6.37657,1568.3,1567.4,17.54101921]
[1744378638750,12.75318,1568.3,1567.8,6.37817]
[1744378638951,11.07420288,1568.4,1568.0,6.37754]
[1744378639250,12.81946817,1568.4,1567.9,6.37781]
[1744378639457,12.75301,1568.3,1567.8,6.37832]
[1744378639792,6.44322817,1568.4,1567.4,5.13101921]
[1744378639992,0.7882,1568.3,1567.5,6.37957]
[1744378640293,0.7882,1568.3,1567.3,6.3803]
[1744378640294,6.37916,1567.7,1567.3,6.3803]
[1744378640459,6.37941,1567.6,1567.2,6.44453118]
[1744378640643,0.8081,1567.8,1566.9,6.38198]
[1744378640847,6.38013,1567.4,1567.0,6.38136]
[1744378641043,6.38006,1567.4,1567.1,0.06381272]
[1744378641244,6.38058,1567.3,1566.9,6.38195]
[1744378641558,6.38058,1567.3,1566.9,6.38187]
[1744378641754,6.3793,1567.6,1567.1,6.3809]
[1744378641958,6.37881,1567.7,1567.3,6.3801]
[1744378642291,6.37877,1567.7,1567.1,0.63809]
[1744378642492,6.37737,1568.1,1567.2,6.3808]
[1744378642689,6.37767,1568.0,1567.6,6.37887]
[1744378642895,7.16296,1568.3,1567.3,6.38005]
[1744378642896,0.7866,1568.3,1568.0,6.37742]
[1744378643097,12.75238,1568.4,1568.0,6.3774]
[1744378643393,6.37753,1568.1,1567.3,13.113]
[1744378643625,6.3776,1568.0,1567.6,6.37903]
[1744378643757,12.75461,1568.1,1567.4,10.69123]
[1744378643946,6.37551,1568.5,1567.9,6.37764]
[1744378644144,6.37601,1568.4,1567.7,6.3787]
[1744378644344,6.37592,1568.4,1568.0,6.37754]
[1744378644588,4.69825288,1568.5,1567.9,6.37794]
[1744378644801,5.88426417,1568.5,1567.7,6.37875]
[1744378644995,4.69825288,1568.5,1568.0,6.37755]
[1744378645297,6.37597,1568.4,1568.0,6.37737]
[1744378645591,6.3773,1568.1,1567.7,6.37852]
[1744378645746,6.37647,1568.3,1567.8,0.06377948]
[1744378645947,11.07385288,1568.5,1567.7,6.37849]
[1744378646142,4.69825288,1568.5,1568.2,6.37654]
[1744378646387,4.69825288,1568.5,1568.1,6.37712]
[1744378646688,11.07383288,1568.5,1568.2,6.37671]
[1744378646989,11.07383288,1568.5,1567.9,6.37781]
[1744378646990,6.37646,1568.3,1567.9,6.37781]
[1744378647179,6.37686,1568.2,1567.8,6.37827]
[1744378647489,4.69825288,1568.5,1567.7,6.85147336]
[1744378647793,4.69825288,1568.5,1568.2,12.75293]
[1744378648001,7.16191,1568.6,1568.2,12.75294]
[1744378648498,7.16193,1568.6,1568.1,6.37696]
[1744378648805,6.37348,1569.0,1568.3,6.37633]
[1744378648953,0.7734,1569.1,1568.2,0.637696]
[1744378648954,6.37422,1568.9,1568.5,6.37534]
[1744378649149,6.37348,1569.0,1568.3,12.75229]
[1744378649501,4.69825288,1569.2,1568.6,7.20817]
[1744378649651,6.37471,1568.7,1568.4,6.37591]
[1744378649865,5.23180167,1569.2,1568.2,0.8331]
[1744378649866,6.37563,1568.5,1568.2,0.8331]
[1744378650070,6.37648,1568.3,1567.9,6.3778]
[1744378650347,6.37646,1568.3,1567.9,6.37795]
[1744378650682,0.637646,1568.3,1567.8,0.7501]
[1744378650980,0.8034,1568.3,1567.2,56.87029]
[1744378651148,6.37892,1567.7,1567.3,6.38017]
[1744378651350,12.75794,1567.7,1567.3,6.38017]
[1744378651551,6.3794,1567.6,1567.2,12.76127]
[1744378651751,0.7644,1567.8,1567.5,6.37936]
[1744378651961,6.37797,1567.9,1567.6,6.37888]
[1744378652183,12.75622,1567.9,1567.5,6.37943]
[1744378652385,0.8147,1568.1,1567.4,7.16752]
[1744378652386,6.37793,1568.0,1567.6,6.37892]
[1744378652577,7.19189,1568.1,1567.7,6.37858]
[1744378652880,13.56928,1568.1,1567.7,6.37858]
[1744378653185,6.37772,1568.0,1567.6,6.37914]
[1744378653357,2.171628,1568.1,1567.6,6.37904]
[1744378653678,7.19192,1568.1,1567.7,6.37859]
[1744378654049,13.56939,1568.1,1567.7,6.37859]
[1744378654288,13.1714,1568.5,1567.4,0.7876]
[1744378654445,6.37706,1568.2,1567.5,6.37953]
[1744378654648,19.54692,1568.5,1567.7,6.37871]
[1744378654896,6.37678,1568.2,1567.5,6.37958]
[1744378655183,8.330942,1568.4,1567.5,6.37951]
[1744378655386,7.16494,1568.8,1568.4,6.37559]
[1744378655559,0.7905,1568.8,1568.2,0.06375654]
[1744378655764,0.7905,1568.8,1568.0,23.06326921]
[1744378655957,0.7905,1568.8,1568.2,6.37673]
[1744378656163,6.37546,1568.6,1568.2,6.37673]
[1744378656462,6.37606,1568.4,1568.0,6.37752]
[1744378656655,6.37575,1568.5,1568.1,6.37707]
[1744378657051,0.7905,1568.8,1568.5,6.37544]
[1744378657254,55.17305288,1569.1,1568.4,6.37585]
[1744378657456,6.37454,1568.8,1568.4,6.37585]
[1744378657674,12.74903,1568.8,1568.4,6.37585]
[1744378657878,6.37564,1568.5,1568.1,6.37702]
[1744378658152,6.37449,1568.8,1568.4,6.37573]
[1744378658358,6.3754,1568.6,1568.2,6.37658]
[1744378658661,6.37564,1568.5,1568.0,6.37716]
[1744378658861,6.37564,1568.5,1567.9,0.7878]
[1744378659097,7.15268,1568.6,1567.7,6.37868]
[1744378659396,6.37732,1568.1,1567.7,6.37868]
[1744378659559,6.3788,1567.7,1567.3,0.8029]
[1744378659758,6.3788,1567.7,1567.3,6.38026]
[1744378659970,6.37932,1567.6,1567.2,6.38067]
[1744378660288,6.37932,1567.6,1567.3,6.38039]
[1744378660487,6.3788,1567.7,1567.3,6.38021]
[1744378660687,12.75781,1567.7,1567.3,6.38021]
[1744378660889,6.37933,1567.6,1567.2,6.38071]
[1744378661183,6.37933,1567.6,1567.2,12.76137]
[1744378661486,0.7654,1567.7,1567.4,6.37986]
[1744378661690,6.37798,1567.9,1567.5,6.37951]
[1744378661890,7.15872,1568.0,1567.6,6.37913]
[1744378661891,0.7811,1568.0,1567.6,6.37913]
[1744378662070,12.75626,1567.9,1567.5,6.37944]
[1744378662793,6.37625,1568.4,1567.5,6.37944]
[1744378662794,7.14597,1568.3,1567.6,6.37917]
[1744378662972,0.7694,1568.3,1567.6,6.37917]
[1744378663170,0.7694,1568.3,1567.7,6.37864]
[1744378663171,6.37736,1568.1,1567.7,6.37864]
[1744378663390,6.37736,1568.1,1567.7,12.75725]
[1744378663605,7.14585,1568.3,1567.9,6.3777]
[1744378663810,13.56516,1568.6,1568.1,6.37685]
[1744378664015,13.56516,1568.6,1568.3,6.37611]
[1744378664016,0.8147,1568.6,1568.3,6.37611]
[1744378664192,17.44722288,1568.8,1568.4,6.37578]
[1744378664489,6.37515,1568.6,1568.2,6.37672]
[1744378664696,4.69825288,1568.8,1568.1,6.37713]
[1744378664865,6.37615,1568.4,1568.0,7.1555]
[1744378665064,6.37556,1568.5,1568.1,6.37697]
[1744378665267,4.69825288,1568.8,1568.2,6.37657]
[1744378665468,6.37525,1568.6,1568.2,6.37657]
[1744378665894,12.75054,1568.6,1568.2,6.37657]
[1744378666569,6.37617,1568.4,1568.0,0.7781]
[1744378666771,6.37617,1568.4,1567.8,6.37829]
[1744378666772,0.8249,1568.4,1567.8,6.37829]
[1744378667092,0.8249,1568.4,1567.6,6.37905]
[1744378667093,6.37774,1568.0,1567.6,6.37905]
[1744378667283,6.37774,1568.0,1567.6,6.37913]
[1744378667482,6.37774,1568.0,1567.6,12.75814]
[1744378667795,6.37769,1568.0,1567.6,6.37913]
[1744378668094,0.8249,1568.4,1567.6,6.37913]
[1744378668095,6.37633,1568.3,1567.7,6.37862]
[1744378668390,12.7549,1568.1,1567.7,6.37862]
[1744378668590,6.37736,1568.1,1567.7,6.37862]
[1744378668795,6.37735,1568.1,1567.7,6.37862]
[1744378669095,12.75471,1568.1,1567.7,6.37862]
[1744378669274,6.3776,1568.0,1567.7,6.37862]
[1744378669673,12.75488,1568.1,1567.7,6.37862]
[1744378669881,1.275488,1568.1,1567.4,68.90355]
[1744378670076,6.37973,1567.5,1567.1,0.7758]
[1744378670265,6.37858,1567.8,1567.1,0.7758]
[1744378670465,0.8246,1567.9,1567.1,7.15685]
[1744378670697,6.37975,1567.5,1567.1,0.7758]
[1744378671001,6.37967,1567.5,1567.1,6.38117]
[1744378671200,6.37928,1567.6,1567.2,6.38064]
[1744378671590,6.37851,1567.8,1567.4,6.37985]
[1744378671896,7.20272,1567.9,1567.2,6.3808]
[1744378672195,6.3785,1567.8,1567.4,6.37986]
[1744378672405,0.8246,1567.9,1567.3,7.15768]
[1744378672701,4.34601921,1567.7,1566.4,0.7653]
[1744378672901,6.38188,1567.0,1566.4,0.7653]
[1744378673110,7.16601,1567.1,1566.5,0.06382585]
[1744378673316,7.16602,1567.1,1566.7,6.38263]
[1744378673474,6.38054,1567.3,1566.7,1.276586]
[1744378673670,13.55186,1567.4,1567.0,6.38139]
[1744378674072,6.38097,1567.2,1566.8,6.38229]
[1744378674388,6.38176,1567.0,1566.6,6.38316]
[1744378674592,6.38084,1567.2,1566.8,6.3824]
[1744378674776,0.7916,1567.4,1567.1,6.38108]
[1744378674978,7.14871,1567.7,1567.3,6.38014]
[1744378675180,6.37749,1568.1,1567.6,6.37879]
[1744378675379,7.15131,1568.3,1567.8,6.37822]
[1744378675584,2.690331,1568.3,1567.5,6.37958]
[1744378675786,6.37779,1568.0,1567.5,6.37938]
[1744378675988,6.37809,1567.9,1567.5,6.37938]
[1744378676222,5.47156008,1569.5,1568.7,59.22548]
[1744378676518,0.005,1570.0,1569.9,6.36983]
[1744378676692,0.005,1570.0,1569.9,7.643836]
[1744378676879,0.005,1570.0,1569.9,8.31031293]
[1744378677079,0.005,1570.0,1569.9,0.11647693]
[1744378677505,6.87834871,1570.0,1569.7,0.3318357]
[1744378677679,0.005,1570.0,1569.9,11.22678666]
[1744378677869,0.005,1570.0,1569.8,6.36995]
[1744378678202,1.55591323,1570.0,1569.7,0.3318357]
[1744378678403,1.55591323,1570.0,1569.8,0.34655931]
[1744378679580,7.18913,1569.9,1569.8,0.34655931]
[1744378679924,6.37023,1569.8,1569.7,0.3318357]
[1744378680278,6.37306,1569.2,1568.9,4.63416514]
[1744378680516,6.37104,1569.6,1568.9,4.63416514]
[1744378680517,6.37186,1569.4,1568.9,4.63416514]
[1744378680834,6.37348,1569.0,1568.9,4.63416514]
[1744378680993,7.14568,1569.0,1568.9,4.63416514]
[1744378681228,8.497566,1569.0,1568.9,4.63416514]
[1744378681509,6.37488,1568.7,1568.4,4.63416514]
[1744378681722,6.37474,1568.7,1568.4,4.63416514]
[1744378681926,6.37551,1568.6,1568.4,4.63416514]
[1744378682129,0.7665,1568.5,1568.4,4.63416514]
[1744378682326,7.14201,1568.5,1568.4,4.63416514]
[1744378682477,8.493762,1568.5,1568.4,4.63416514]
[1744378682678,8.16124617,1568.5,1568.4,4.63416514]
[1744378682924,8.16135617,1568.5,1567.9,4.63416514]
[1744378683090,12.7547,1568.1,1567.9,4.63416514]
[1744378683294,6.37717,1568.1,1567.9,4.63416514]
[1744378683616,6.80977417,1568.5,1567.9,5.09758165]
[1744378683819,0.43398417,1568.5,1567.9,5.09758165]
[1744378683986,6.37726,1568.1,1567.9,4.63416514]
[1744378684333,6.37755,1568.0,1567.9,4.63416514]
[1744378684680,6.37993,1567.5,1567.2,7.35050876]
[1744378684882,6.38039,1567.3,1567.2,7.35050876]
[1744378685189,6.3782,1567.9,1567.3,6.38017]
[1744378685380,6.37842,1567.8,1567.4,0.638017]
[1744378685579,6.37834,1567.9,1567.2,5.48181392]
[1744378685780,6.38007,1567.4,1567.2,4.65021392]
[1744378685997,6.37981,1567.5,1567.2,4.65021392]
[1744378686584,13.5778,1568.1,1567.2,11.03101392]
[1744378686784,6.37846,1567.8,1567.2,11.03085392]
[1744378687008,6.3783,1567.9,1567.3,1.10308539]
[1744378687179,12.75655,1567.9,1567.3,1.10308539]
[1744378687386,6.38039,1567.3,1567.2,4.65021392]
[1744378687603,6.38004,1567.4,1567.2,4.65021392]
[1744378687803,6.38039,1567.3,1567.2,4.65021392]
[1744378688005,6.3808,1567.2,1567.1,0.05]
[1744378688317,6.38166,1567.0,1566.5,7.35050876]
[1744378688519,6.38325,1566.6,1566.5,7.35050876]
[1744378688820,7.18565,1566.6,1566.5,3.35060876]
[1744378689015,6.38365,1566.5,1566.1,10.15694954]
[1744378689219,6.38488,1566.2,1566.1,0.05]
[1744378689420,6.38466,1566.3,1566.1,0.05]
[1744378689717,6.38451,1566.3,1566.1,0.05]
[1744378690106,7.14788,1566.2,1566.1,0.05]
[1744378690282,7.14788,1566.2,1566.0,6.04921058]
[1744378690283,6.38528,1566.1,1566.0,6.04921058]
[1744378692586,6.38528,1566.1,1565.3,16.49546954]
[1744378692587,6.38651,1565.8,1565.1,0.05]
[1744378692806,12.77602,1565.5,1565.1,0.05]
[1744378693005,6.38797,1565.5,1565.1,0.05]
[1744378693213,3.8037,1565.9,1565.1,0.05]
[1744378693423,6.38813,1565.5,1565.1,0.05]
[1744378693729,6.38691,1565.7,1565.1,0.05]
[1744378694023,6.38895,1565.2,1565.1,0.05]
[1744378694204,7.19589,1565.3,1565.1,0.05]
[1744378694412,0.8073,1565.3,1565.1,0.05]
[1744378694706,12.77674,1565.4,1565.1,0.05]
[1744378694906,6.38858,1565.3,1565.1,0.05]
[1744378695318,6.38895,1565.2,1565.1,0.05]
[1744378695618,7.665884,1565.4,1565.1,0.05]
[1744378695820,13.09015,1565.4,1565.1,0.05]
[1744378695994,6.38815,1565.4,1565.1,0.05]
[1744378696193,6.38862,1565.3,1565.1,0.05]
[1744378696413,6.38773,1565.5,1565.1,6.43935]
[1744378696619,12.77575,1565.5,1565.1,0.693935]
[1744378696813,7.22122,1565.2,1564.3,0.4021311]
[1744378696994,6.39101,1564.7,1564.3,0.4021311]
[1744378697189,6.39195,1564.5,1564.3,0.4021311]
[1744378697418,6.39118,1564.7,1564.3,0.4021311]
[1744378697626,6.3906,1564.8,1564.3,7.50610121]
[1744378697795,3.8322,1565.2,1564.4,7.21376]
[1744378697992,6.38936,1565.1,1564.3,0.4021311]
[1744378698332,6.39222,1564.4,1564.3,0.4021311]
[1744378698891,6.39147,1564.6,1564.3,0.4021311]
[1744378699298,6.39199,1564.5,1564.3,0.4021311]
[1744378699497,12.78411,1564.5,1564.3,0.4021311]
[1744378699716,6.39112,1564.7,1564.3,0.4021311]
[1744378699922,6.39162,1564.6,1564.3,0.4021311]
[1744378700119,6.39162,1564.6,1564.3,1.11362821]
[1744378700325,6.39101,1564.7,1564.3,6.7946511]
[1744378700533,6.39163,1564.6,1564.3,0.4021311]
[1744378700707,6.39059,1564.8,1564.3,0.4021311]
[1744378700912,6.39222,1564.4,1564.3,0.4021311]
[1744378701838,6.39198,1564.5,1564.3,0.4021311]
[1744378702034,6.39059,1564.8,1564.3,6.7943911]
[1744378702035,6.39102,1564.7,1564.3,6.7943911]
[1744378702333,6.39092,1564.8,1564.4,6.39208]
[1744378702537,6.38774,1565.5,1564.3,1.75286821]
[1744378702538,0.7751,1565.4,1564.5,0.86491604]
[1744378702724,0.33338095,1565.7,1564.5,0.86491604]
[1744378702725,0.33338095,1565.7,1565.0,0.7729]
[1744378702927,6.72054095,1565.7,1565.1,0.06388483]
[1744378703233,6.38734,1565.6,1565.2,6.38871]
[1744378703420,6.38734,1565.6,1565.2,0.638871]
[1744378703620,10.15528,1566.0,1565.2,6.38891]
[1744378703621,7.15522,1566.0,1565.2,6.38891]
[1744378703806,6.38757,1565.6,1565.2,6.38885]
[1744378704005,6.38753,1565.6,1565.3,6.38855]
[1744378704323,6.38696,1565.7,1565.0,0.7729]
[1744378704324,6.38651,1565.8,1565.1,12.77851]
[1744378704522,6.38779,1565.5,1565.0,0.7729]
[1744378704724,12.77694,1565.4,1565.0,7.16264]
[1744378704926,0.7692,1566.0,1565.3,6.38838]
[1744378705128,6.38366,1566.5,1565.6,6.38732]
[1744378705434,6.38341,1566.6,1566.2,6.38468]
[1744378705663,6.3844,1566.4,1566.1,0.7981]
[1744378705801,6.38286,1566.7,1565.9,6.38607]
[1744378706006,6.38365,1566.5,1565.8,6.38648]
[1744378706305,6.38467,1566.3,1565.9,6.38596]
[1744378706504,0.638286,1566.6,1566.1,6.38517]
[1744378706751,6.38118,1567.2,1566.2,0.7683]
[1744378706918,6.38063,1567.3,1566.4,0.7683]
[1744378707118,0.643063,1567.3,1566.6,6.38302]
[1744378707311,6.38205,1566.9,1566.5,12.767]
[1744378707524,6.38165,1567.0,1566.6,6.7255101]
[1744378707853,6.43003,1567.4,1566.6,0.3424501]
[1744378707854,6.38219,1566.9,1566.6,0.3424501]
[1744378708020,6.38284,1566.7,1566.6,0.3424501]
[1744378708225,6.38284,1566.7,1566.2,6.38483]
[1744378708226,6.38047,1567.3,1566.4,6.38406]
[1744378708537,6.38047,1567.3,1566.8,6.38238]
[1744378708538,6.38055,1567.3,1566.8,6.38238]
[1744378708741,6.38341,1566.6,1566.3,1.1749501]
[1744378708920,6.38399,1566.5,1566.0,7.21799]
[1744378709119,9.38162,1567.0,1566.0,0.8325]
[1744378709443,9.38162,1567.0,1566.5,6.38343]
[1744378709444,6.38218,1566.9,1566.5,6.38343]
[1744378709643,6.3808,1567.2,1566.7,6.38257]
[1744378709822,6.38163,1567.0,1566.6,13.57464]
[1744378710023,6.3813,1567.1,1566.6,7.1914]
[1744378710218,6.38243,1566.8,1566.7,0.34531319]
[1744378711031,7.19243,1566.8,1566.7,0.34531319]
[1744378711356,9.38284,1566.7,1565.9,0.7717]
[1744378711531,6.38571,1566.0,1565.6,0.8229]
[1744378711723,6.38628,1565.9,1565.6,0.8229]
[1744378712053,6.38628,1565.9,1565.3,0.8149]
[1744378712054,6.38788,1565.5,1565.3,0.8149]
[1744378712217,6.38569,1566.0,1565.3,0.8149]
[1744378712421,7.024899,1565.9,1565.4,6.38787]
[1744378712631,6.38791,1565.5,1565.1,12.77834]
[1744378712833,6.38715,1565.7,1565.3,6.38832]
[1744378713033,3.7969,1566.3,1565.2,0.26969576]
[1744378713232,6.38723,1565.7,1565.2,6.65840576]
[1744378713457,6.3861,1565.9,1565.3,0.26969576]
[1744378713458,6.38639,1565.9,1565.3,0.26969576]
[1744378713659,6.384,1566.5,1565.6,0.7771]
[1744378713856,6.38405,1566.5,1565.9,6.38577]
[1744378714059,6.38429,1566.4,1566.0,0.26969576]
[1744378714262,6.38447,1566.3,1566.0,0.26969576]
[1744378714566,6.38491,1566.2,1566.0,0.26969576]
[1744378714787,6.38491,1566.2,1566.1,0.26969576]
[1744378714987,6.38399,1566.5,1566.1,0.26969576]
[1744378715262,6.38488,1566.2,1566.1,0.26969576]
[1744378716866,0.8252,1566.7,1566.1,1.02709576]
[1744378717070,6.38287,1566.7,1566.1,1.02709576]
[1744378717248,6.38488,1566.2,1566.1,0.26969576]
[1744378717563,6.38325,1566.6,1566.1,0.34709876]
[1744378717763,6.38215,1566.9,1566.3,0.8327]
[1744378718065,6.38124,1567.1,1566.4,6.44775541]
[1744378718367,0.7922,1567.3,1566.4,7.1757114]
[1744378718541,6.38163,1567.0,1566.6,6.38313]
[1744378718770,6.38082,1567.2,1566.5,0.61764359]
[1744378718952,6.38274,1566.8,1566.7,0.27054483]
[1744378719143,6.38083,1567.2,1566.7,0.27054483]
[1744378719348,6.38241,1566.9,1566.8,0.27054483]
[1744378720367,6.383,1566.7,1566.3,7.21699]
[1744378720567,6.38212,1566.9,1566.5,6.38354]
[1744378720767,6.38249,1566.8,1566.4,6.65443182]
[1744378720967,12.76445,1566.9,1566.5,6.38349]
[1744378721139,12.76347,1567.0,1566.5,6.38365]
[1744378721464,12.76369,1567.0,1566.6,6.65335182]
[1744378721669,6.38239,1566.9,1566.6,0.27042182]
[1744378721867,6.38261,1566.8,1566.6,0.27042182]
[1744378722040,0.717303,1567.2,1566.7,0.27042182]
[1744378722041,12.76354,1567.0,1566.7,0.27042182]
[1744378722242,6.38162,1567.0,1566.7,0.27042182]
[1744378722443,6.38127,1567.1,1566.7,0.27042182]
[1744378722444,6.38121,1567.1,1566.7,0.27042182]
[1744378722642,6.38121,1567.1,1566.3,0.8327]
[1744378722845,6.43004,1567.4,1566.9,0.7881]
[1744378723060,6.43015,1567.4,1567.0,0.26993334]
[1744378723239,6.43015,1567.4,1567.1,6.38106]
[1744378723240,0.05,1567.4,1567.1,6.38106]
[1744378723446,6.43016,1567.4,1567.2,0.26993334]
[1744378723744,6.43016,1567.4,1567.2,0.34723607]
[1744378723745,6.38039,1567.3,1567.2,0.34723607]
[1744378724146,6.43016,1567.4,1567.2,0.34723607]
[1744378724365,6.38039,1567.3,1567.2,0.34723607]
[1744378724566,12.81053,1567.4,1567.2,0.34723607]
[1744378724763,6.38039,1567.3,1567.2,0.34723607]
[1744378725166,7.661445,1567.3,1567.2,0.34723607]
[1744378725473,6.38039,1567.3,1567.2,0.34723607]
[1744378725675,6.38105,1567.2,1566.8,6.38236]
[1744378725874,6.43001,1567.4,1566.7,6.72999607]
[1744378726091,6.38202,1566.9,1566.8,0.61499017]
[1744378726342,6.43036,1567.4,1566.8,0.96222624]
[1744378726452,0.05,1567.4,1567.2,6.38062]
[1744378726755,0.05,1567.4,1567.3,0.61689274]
[1744378726954,6.42999,1567.4,1567.3,0.61689274]